Cogmind - Beta 12 @@@ ROGUE MODE // 2023.03.06 @ 00:34:08 Player: Lunatic Blue Result: Destroyed by 8R-AWN with 8R-AWN's Boregun Performance ------------- Evolutions (1) 500 Regions Visited (5) 1000 Robots Destroyed (58) 290 Value Destroyed (1152) 1152 Prototype IDs (29) 580 Alien Tech Used (0) 0 Bonus (386) 386 TOTAL SCORE: 3908 Bonus ------- High Alert Combat Kills 19 Follower Combat Kills 67 Aligned with FarCom 300 Cogmind --------- Core Integrity 0/400 Matter 250/300 Energy 84/100 System Corruption 0% Temperature Cool (0) Movement Treading (240) Ox1 Location -9/Exiles Parts ------- > --- POWER (1) -------- (None) > --- PROPULSION (3) --- Light Treads Light Treads Light Treads > --- UTILITY (3) ------ Huge Storage Unit Seismic Detector Hardened Light Armor Plating > --- WEAPON (2) ------- Improved Assault Rifle Improved Assault Rifle > --- INVENTORY (25) --- Heavy Ion Engine Heavy Ion Engine Armored Wheel Armored Wheel Signal Interpreter Transport Network Coupler Hardened Light Armor Plating Hardened Light Armor Plating Hardened Light Armor Plating Hardened Light Armor Plating Heavy Assault Rifle Heavy Assault Rifle Improved Assault Rifle Battle Cannon Rocket Launcher Improved Datajack Maul Peak State ------------ > --- POWER ------------ Cooled Ion Engine > --- PROPULSION ------- Light Treads Light Treads Light Treads > --- UTILITY ---------- Huge Storage Unit Seismic Detector Hardened Light Armor Plating > --- WEAPON ----------- Improved Assault Rifle Improved Assault Rifle > --- INVENTORY -------- Heavy Ion Engine Heavy Ion Engine Light Treads Light Treads Wheel Compact Wheel VTOL Module Improved Flight Unit Improved Flight Unit Improved Flight Unit Medium Storage Unit Signal Interpreter Transport Network Coupler Light Armor Plating Medium Armor Plating Medium Armor Plating Medium Armor Plating Hardened Light Armor Plating EM Pulse Cannon EM Pulse Cannon Heavy Assault Rifle Improved Assault Rifle Improved Assault Rifle Grenade Launcher Rocket Launcher [Rating: 21] Favorites ----------- Power Cooled Ion Engine Engine Cooled Ion Engine Propulsion Light Treads Treads Light Treads Leg Aluminum Leg Wheel Compact Wheel Flight Unit Improved Flight Unit Utility Huge Storage Unit Device Seismic Detector Storage Huge Storage Unit Protection Hardened Light Armor Plating Weapon Improved Assault Rifle Energy Gun Small Laser Energy Cannon Advanced Beam Cannon Ballistic Gun Improved Assault Rifle Ballistic Cannon Battle Cannon Launcher Rocket Launcher Build | -11 -10 -10 -9 -9 -9 ------- Run | Jun Mat Min Mat Min Exi Slots Evolved 2 | . . . 2 . . Power . | . . . . . . Propulsion 1 | . . . 1 . . Utility 1 | . . . 1 . . Weapon . | . . . . . . Parts Attached 53 | . 10 . 34 2 7 Power 7 | . 2 . 5 . . Engine 7 | . 2 . 5 . . Core . | . . . . . . Reactor . | . . . . . . Propulsion 22 | . 2 . 18 . 2 Treads 15 | . 1 . 12 . 2 Leg . | . . . . . . Wheel 6 | . 1 . 5 . . Hover . | . . . . . . Flight 1 | . . . 1 . . Utility 9 | . 3 . 5 . 1 Device 1 | . . . 1 . . Storage 1 | . 1 . . . . Processor . | . . . . . . Hackware . | . . . . . . Protection 7 | . 2 . 4 . 1 Artifact . | . . . . . . Weapon 15 | . 3 . 6 2 4 Energy Gun . | . . . . . . Energy Cannon 1 | . . . 1 . . Ballistic Gun 10 | . 3 . 5 1 1 Ballistic Cannon 1 | . . . . . 1 Launcher 3 | . . . . 1 2 Special Weapon . | . . . . . . Impact Weapon . | . . . . . . Slashing Weapon . | . . . . . . Piercing Weapon . | . . . . . . Special Melee Weapon . | . . . . . . Unidentified Prototypes 5 | . . . 5 . . Parts Lost 9 | . . . 4 . 5 Power 1 | . . . . . 1 Propulsion 4 | . . . 2 . 2 Utility 3 | . . . 2 . 1 Weapon 1 | . . . . . 1 Highest Loss Streak 3 | . . . 1 . 3 To Critical Strikes 3 | . . . . . 3 Average Slot Usage (%) 98 | . 99 100 95 100 99 Engine 11 | . 14 14 10 11 11 Treads 24 | . 12 14 23 33 32 Wheel 6 | . 12 14 8 . . Device 7 | . . . 8 11 11 Storage 11 | . 14 14 11 11 11 Protection 11 | . 13 14 9 11 11 Ballistic Gun 22 | . 27 28 21 21 20 Naked Turns . | . . . . . . Heaviest Build 102 | 11 92 92 102 101 101 Greatest Support 60 | 20 20 16 60 60 60 Greatest Overweight (x) 10 | . 5 5 10 1 1 Average Overweight (x) 2 | . 4 5 2 1 1 Largest Inventory Capacity 25 | . 25 25 25 25 25 Average Capacity 24 | . 22 25 25 25 25 Most Carried 25 | . 16 20 25 25 25 Average Carried 21 | . 9 18 24 23 23 Final Capacity 25 | 8 25 25 25 25 25 Final Carried 25 | 6 16 20 25 24 17 Class Distribution -------------------- 64% | Mutant 35% | Scavenger-Mutant Dominant Class ---------------- Mutant | -10/Materials Mutant | -10/Mines Mutant | -9/Materials Scavenger-Mutant | -9/Mines Scavenger-Mutant | -9/Exiles Resources | -11 -10 -10 -9 -9 -9 ----------- Run | Jun Mat Min Mat Min Exi Matter Collected 1679 | 200 209 13 1064 43 150 Remotely . | . . . . . . Salvage Created 1926 | . 230 22 1635 21 18 Parts 145 | . 25 5 110 5 . Haulers Intercepted 7 | . 1 . 6 . . Recyclers Shooed 2 | . . . 2 . . Parts Field Recycled . | . . . . . . Retrieved Matter . | . . . . . . Parts Self-Destructed . | . . . . . . Prevented . | . . . . . . Kills | -11 -10 -10 -9 -9 -9 ------- Run | Jun Mat Min Mat Min Exi Combat Hostiles Destroyed 43 | . 7 . 29 2 5 Guns 37 | . 7 . 29 . 1 AOE 6 | . . . . 2 4 Classes Destroyed 11 | . 5 1 4 . 1 Worker 3 | . 1 . 2 . . Builder 2 | . . . 1 1 . Tunneler 1 | . . 1 . . . Hauler 7 | . 1 . 6 . . Recycler 2 | . . . 2 . . Operator 1 | . . . 1 . . Watcher 4 | . 1 . 3 . . Swarmer 18 | . 6 . 10 2 . Grunt 10 | . 1 . 9 . . Sentry 10 | . . . 10 . . Assembled 5 | . . . . . 5 Best Kill Streak 8 | . 3 1 8 2 5 Combat Bots Only 6 | . 3 . 6 2 5 Max Kills in Single Turn 2 | . 1 1 2 2 2 Gunslinging 1 | . . . 1 . . Exploded 2 | . . . . 2 2 Melee . | . . . . . . Uniques/NPCs Destroyed . | . . . . . . Combat | -11 -10 -10 -9 -9 -9 -------- Run | Jun Mat Min Mat Min Exi Damage Taken 2624 | . 199 . 1518 19 888 Core 453 | . 48 . 263 . 142 Absorbed by Shields . | . . . . . . Core Remaining (%) 90 | 100 . 80 . . . Volleys Fired 181 | . 29 1 124 3 24 Largest 2 | . 2 2 2 2 2 Hottest 60 | . 60 46 46 46 46 Shots Fired 347 | . 58 2 248 5 34 Gun 340 | . 58 2 248 4 28 Cannon . | . . . . . . Launcher 7 | . . . . 1 6 Special . | . . . . . . Kinetic 336 | . 54 2 248 4 28 Thermal 4 | . 4 . . . . Explosive 7 | . . . . 1 6 Electromagnetic . | . . . . . . Robot Hit Streak 20 | . 7 3 20 1 7 Robot Miss Streak 6 | . 6 . 6 1 1 Penetration Max . | . . . . . . Secondary Targets 5 | . 2 . 3 . . Max Gunslinging Chain 1 | . 1 . 1 . . Shots Hit Robots 222 | . 26 2 169 1 24 Core Hits 89 | . 13 1 62 4 9 Critical Kills 2 | . . . 2 . . Critical Parts Destroyed 2 | . . . 2 . . Critical Strikes 4 | . . . 4 . . Destroy 4 | . . . 4 . . Melee Attacks . | . . . . . . Impact . | . . . . . . Slashing . | . . . . . . Piercing . | . . . . . . Sneak Attacks . | . . . . . . Combat Hostiles . | . . . . . . Follow-up Attacks . | . . . . . . Damage Inflicted 3734 | . 275 28 2641 180 610 Guns 3299 | . 275 28 2630 44 322 Cannons . | . . . . . . Explosions 401 | . . . . 113 288 Melee . | . . . . . . Ramming 34 | . . . 11 23 . Kinetic 3287 | . 263 28 2630 44 322 Thermal 12 | . 12 . . . . Explosive 401 | . . . . 113 288 Electromagnetic . | . . . . . . Impact . | . . . . . . Slashing . | . . . . . . Piercing . | . . . . . . Highest Corruption . | . . . . . . Average Corruption . | . . . . . . Corruption Purged . | . . . . . . Corruption Blocked . | . . . . . . Overload Shots . | . . . . . . Overflow Damage . | . . . . . . Projectiles . | . . . . . . Explosions . | . . . . . . Melee . | . . . . . . Knockbacks . | . . . . . . Impact . | . . . . . . Kinetic . | . . . . . . Secondary . | . . . . . . Self-Inflicted Damage 48 | . . . . . 48 Shots 1 | . . . . . 1 Rammed 3 | . . . 1 2 . Targets Rammed 4 | . . . 2 2 . Kicked . | . . . . . . Crushed 1 | . . . 1 . . Highest Temperature 368 | . 12 . 368 . . Average Temperature 32 | . 5 . 49 . . Received Heat Transfer 501 | . 6 . 495 . . Effects 1 | . . . 1 . . Interference 1 | . . . 1 . . Siege Activations . | . . . . . . Robots Corrupted . | . . . . . . Combat Hostiles . | . . . . . . Parts Fried . | . . . . . . Impact Corruptions . | . . . . . . Robots Melted . | . . . . . . Combat Hostiles . | . . . . . . Parts Melted . | . . . . . . Heat Transferred 25 | . 25 . . . . Parts Sabotaged . | . . . . . . Parts Stolen . | . . . . . . Parts Stripped . | . . . . . . Power Chain Reactions . | . . . . . . Missiles Intercepted . | . . . . . . Alert | -11 -10 -10 -9 -9 -9 ------- Run | Jun Mat Min Mat Min Exi Peak Influence 453 | . 213 24 453 165 . Initial 160 | . . 19 . 160 . Average 172 | . 60 15 269 108 . Maximum Alert Level 2 | . 1 . 2 . . Low Security (%) 59 | . 97 100 24 100 . Level 1 34 | . 2 . 64 . . Level 2 6 | . . . 11 . . Level 3 . | . . . . . . Level 4 . | . . . . . . Level 5 . | . . . . . . High Security . | . . . . . . Max Security . | . . . . . . Squads Dispatched 3 | . 1 . 2 . . Investigation 2 | . 1 . 1 . . Extermination . | . . . . . . Reinforcement 1 | . . . 1 . . Assault . | . . . . . . Garrison . | . . . . . . Intercept . | . . . . . . Searches Triggered . | . . . . . . Construction Impeded . | . . . . . . Haulers Reinforced . | . . . . . . Active Scanning Responses . | . . . . . . Cargo Convoy Interrupts . | . . . . . . Stealth | -11 -10 -10 -9 -9 -9 --------- Run | Jun Mat Min Mat Min Exi Distress Signals 6 | . 1 . 5 . . Communications Jammed . | . . . . . . Distress Signals . | . . . . . . Times Spotted 81 | . 20 . 47 6 8 Peak Tracking Total 9 | . 6 . 6 4 9 Tactical Retreats 2 | . . . 2 . . Traps | -11 -10 -10 -9 -9 -9 ------- Run | Jun Mat Min Mat Min Exi Traps Triggered 2 | . 1 . 1 . . Indirectly . | . . . . . . Trap Hack Attempts . | . . . . . . Triggered . | . . . . . . Disarmed . | . . . . . . Reprogrammed . | . . . . . . Reused . | . . . . . . Traps Extracted . | . . . . . . Installed . | . . . . . . Triggered . | . . . . . . Exploded 3 | . . . . . 3 Machines | -11 -10 -10 -9 -9 -9 ---------- Run | Jun Mat Min Mat Min Exi Machines Disabled 7 | . . . 3 . 4 Max in Single Turn 2 | . . . 1 . 2 Machines Repaired . | . . . . . . Machines Sabotaged . | . . . . . . Overloaded Fab Kills . | . . . . . . Hacking | -11 -10 -10 -9 -9 -9 --------- Run | Jun Mat Min Mat Min Exi Machines Accessed 13 | . 4 . 7 . 2 Terminals 7 | . 3 . 4 . . Fabricators . | . . . . . . Repair Stations . | . . . . . . Recycling Units 3 | . 1 . 2 . . Scanalyzers 1 | . . . 1 . . Garrison Access . | . . . . . . Total Hacks 28 | . 8 . 18 . 2 Successful 13 | . 2 . 9 . 2 Failed 15 | . 6 . 9 . . Catastrophic 4 | . 1 . 3 . . Database Lockouts . | . . . . . . Manual 16 | . 6 . 9 . 1 Terminals 14 | . 6 . 8 . . Fabricators . | . . . . . . Repair Stations . | . . . . . . Recycling Units 6 | . 2 . 4 . . Scanalyzers 6 | . . . 6 . . Garrison Access . | . . . . . . Terminal Hacks 4 | . 1 . 1 . 2 Record 1 | . . . . . 1 Level Access Points 1 | . 1 . . . . Terminal Index 1 | . . . 1 . . EX-Prototype ID Bank 1 | . . . . . 1 Fabricator Hacks . | . . . . . . Repair Station Hacks . | . . . . . . Recycling Unit Hacks 1 | . . . 1 . . Retrieve Components 1 | . . . 1 . . Scanalyzer 5 | . . . 5 . . Insert Component 2 | . . . 2 . . Analyze 3 | . . . 3 . . Garrison Access Hacks . | . . . . . . Unauthorized Hacks 3 | . 1 . 2 . . Terminals 1 | . . . 1 . . Operators 1 | . . . 1 . . Fabricators . | . . . . . . Repair Stations . | . . . . . . Recycling Units 2 | . 1 . 1 . . Tunnel 2 | . 1 . 1 . . Scanalyzers . | . . . . . . Garrison Access . | . . . . . . Data Cores Recovered . | . . . . . . Used . | . . . . . . Hacking Detections 9 | . 3 . 6 . . Full Trace Events . | . . . . . . Feedback Events . | . . . . . . Feedback Blocked . | . . . . . . Robot Schematics Acquired . | . . . . . . Robots Built . | . . . . . . Authchips . | . . . . . . Time . | . . . . . . Total Robot Build Rating . | . . . . . . Part Schematics Acquired 1 | . . . 1 . . Parts Built . | . . . . . . Authchips . | . . . . . . Time . | . . . . . . Total Part Build Rating . | . . . . . . Parts Repaired . | . . . . . . Time . | . . . . . . Parts Recycled . | . . . . . . Recycled Matter . | . . . . . . Retrieved Matter . | . . . . . . Retrieved Components 10 | . . . 10 . . Parts Scanalyzed 1 | . . . 1 . . Part Schematics Acquired 1 | . . . 1 . . Parts Damaged 1 | . . . 1 . . Bothacking | -11 -10 -10 -9 -9 -9 ------------ Run | Jun Mat Min Mat Min Exi Used RIF Installer . | . . . . . . Robots Hacked . | . . . . . . Non-combat . | . . . . . . Combat . | . . . . . . Robot Hacks Applied . | . . . . . . Relay Couplers Released . | . . . . . . Fabnet Peak Effective % . | . . . . . . Robots Rewired . | . . . . . . Allies Hacked . | . . . . . . Hacks Repelled . | . . . . . . Allies | -11 -10 -10 -9 -9 -9 -------- Run | Jun Mat Min Mat Min Exi Total Allies 3 | . . . . 3 . Largest Group 3 | . . . . 3 2 Highest-Rated Group 40 | . . . . 40 24 Highest-Rated Ally 16 | . . . . 16 16 Total Orders 1 | . . . . . 1 STAY 1 | . . . . . 1 Ally Attacks 8 | . . . . 7 1 Total Damage 100 | . . . . 82 18 Kills 3 | . . . . 3 . Allies Corrupted . | . . . . . . Allies Melted . | . . . . . . Intel | -11 -10 -10 -9 -9 -9 ------- Run | Jun Mat Min Mat Min Exi Robot Analysis Total . | . . . . . . Derelict Logs Recovered 3 | . . 1 . 2 . Drone Launches . | . . . . . . Drone Recoveries . | . . . . . . Exploration | -11 -10 -10 -9 -9 -9 ------------- Run | Jun Mat Min Mat Min Exi Turns Passed 6371 | . 1011 521 2478 724 1637 Spaces Moved 2794 | 1 536 291 1033 290 643 Core . | . . . . . . Treads 1439 | . . . 506 290 643 Legs 86 | 1 85 . . . . Wheels 1269 | . 451 291 527 . . Hover . | . . . . . . Flight . | . . . . . . Fastest Speed 120 | 120 120 175 135 240 240 Average Speed 199 | 120 166 175 188 240 240 Slowest Speed 480 | 120 175 175 480 240 240 Overloaded Moves . | . . . . . . Propulsion Burnouts . | . . . . . . Robots Hopped . | . . . . . . Cave-ins Triggered . | . . . . . . Exploration Rate (%) 56 | 2 64 75 80 44 75 Regions Visited 5 Branch Regions 3 Pre-discovered Areas 4 | . 1 . 1 1 1 Known Exits Taken 2 | . . 1 1 . . Unknown Exits Taken 3 | 1 1 . . 1 . Scrap Searched 5 | . . 1 . 4 . Spaces Dug 13 | . . . . 13 . Terrain Destroyed 47 | . . . . 13 34 Melee . | . . . . . . Projectile . | . . . . . . AOE 47 | . . . . 13 34 Terrain Rammed . | . . . . . . Walls Destroyed . | . . . . . . Machines Disabled . | . . . . . . Actions | -11 -10 -10 -9 -9 -9 --------- Run | Jun Mat Min Mat Min Exi Total 3274 | . 603 301 1352 312 706 Wait 112 | . 9 6 70 9 18 Move 2789 | . 535 290 1032 289 643 Hop . | . . . . . . Pick Up 66 | . 13 4 41 3 5 Fast Attach 13 | . 2 . 11 . . Attach 17 | . 3 . 9 . 5 Detach 1 | . . . . . 1 Swap 23 | . 5 . 14 2 2 Drop 68 | . 7 . 49 4 8 Fire 181 | . 29 1 124 3 24 Melee . | . . . . . . Ram . | . . . . . . Kick . | . . . . . . Crush 4 | . . . 2 2 . Escape Stasis . | . . . . . . Rewire . | . . . . . . Trap . | . . . . . . Miscellaneous . | . . . . . . Route ------- -11/Junkyard -10/Materials (discovered 5 exits: *Mat x3 / [*Min x2]) -10/Mines -9/Materials (discovered 5 exits: [*Mat x3] / *Min x2) -9/Mines (discovered 2 exits: [*Mat] / *Exi) -9/Exiles History --------- Turn | Location | Event 1 | -11/Junkyard | Discovered new exit (range 0) 1 | -11/Junkyard | Entered Materials 126 | -10/Materials | Identified exit to Materials 192 | -10/Materials | Discovered new exit (range 5) 313 | -10/Materials | Build established: Mutant 959 | -10/Materials | Discovered new exit (range 11) 1012 | -10/Materials | Entered Mines 1058 | -10/Mines | Received a Rocket Launcher from a helpful Derelict 1153 | -10/Mines | Learned location of 1 exit from Materials 1169 | -10/Mines | Found a damaged Exp. Sensor Array with a note attached 1173 | -10/Mines | Found Prototype Device 1388 | -10/Mines | Discovered exit to Materials (range 5) 1533 | -10/Mines | Entered Materials 1533 | -9/Materials | Evolved 2 slots: Propulsion x1, Utility x1 1534 | -9/Materials | Identified exit to Mines 1801 | -9/Materials | Identified Exp. Sensor Array 1836 | -9/Materials | Discovered exit to Mines (range 5) 1902 | -9/Materials | Discovered new exit (range 11) 2534 | -9/Materials | Core integrity fell below 50% 2692 | -9/Materials | Discovered new exit (range 6) 3478 | -9/Materials | Discovered new exit (range 15) 4011 | -9/Materials | Entered Mines 4012 | -9/Mines | Learned location of Storage (-7) 4049 | -9/Mines | A weapon hastily lodged in a ceiling crevice suddenly fell to the ground 4067 | -9/Mines | Build established: Scavenger-Mutant 4161 | -9/Mines | Met a Derelict bent on vengeance 4181 | -9/Mines | Assisted by bots powering up and referring to "LRC-V3" 4196 | -9/Mines | Learned Materials terminal intel 4254 | -9/Mines | Discovered new exit (range 8) 4717 | -9/Mines | Deemed a non-threat by the Exiles lab entrance 4720 | -9/Mines | Discovered new exit (range 5) 4735 | -9/Mines | Entered Exiles 4735 | -9/Exiles | Accompanied by 2 allies 4793 | -9/Exiles | Met 8R-AWN 4834 | -9/Exiles | Met EX-HEX 4913 | -9/Exiles | Met EX-BIN 4941 | -9/Exiles | Aligned with FarCom system 4944 | -9/Exiles | Given EX-Vault access code 4999 | -9/Exiles | Opened EX-Vault 5052 | -9/Exiles | Warned to stay clear of 0b10 Research branches 5213 | -9/Exiles | Met EX-DEC 5229 | -9/Exiles | Learned location of Zion (-6) 5322 | -9/Exiles | Visited The Gauntlet 6251 | -9/Exiles | Attacked by the Exiles 6297 | -9/Exiles | Core integrity fell below 20% 6367 | -9/Exiles | Build established: Mutant 6372 | -9/Exiles | Destroyed by 8R-AWN with 8R-AWN's Boregun Last Messages --------------- 06361_ Penetrated by HV Slug. 06361_ HV Slug penetrates Earth. 06361_ Penetrated by HV Slug. 06361_ HV Slug penetrates Earth. 06363_ HV Slug penetrates Wall. 06365_ Penetrated by HV Slug. 06365_ HV Slug penetrates Earth. 06365_ HV Slug penetrates Wall. 06368_ Penetrated by HV Slug. 06368_ HV Slug penetrates Earth. 06368_ HV Slug penetrates Wall. 06370_ Penetrated by HV Slug. 06370_ Critical hit (Destroy). 06370_ Hrd. Light Armor Plating destroyed. 06370_ HV Slug penetrates Earth. 06370_ Penetrated by HV Slug. 06370_ Critical hit (Destroy). 06370_ Cld. Ion Engine destroyed. 06370_ HV Slug penetrates Earth. 06372_ Penetrated by HV Slug. Map ----- +----------------------------------------------------+ | ?????????????????????????????????????????????????? | | ?????????????????????????????????????????????????? | | ?????????????????????????????????????????????????? | | ?????????????????????????????????????????????????? | | ?????????????????????????????????????????????????? | | ?????????????????????????????????????????????????? | | ?????????????????????????????????????????????????? | | ?????????????????????????????????????????????????? | | ?????????????????????????????????????????????????? | | ?????????????????????????????????????????????????? | | ?????????????????????????????#######?????????????? | | ??????????????? ######???????#!!! "#?????????????? | | ??????????????? #""#??????# "#?????????????? | | ??????????????? ??????# ! "#?????????????? | | ?????????????? #????## ""#????????????## | | ?????????????? #####" ""#???????????? | | ??????????????# ##" ""#????????????" | | ???????????????# #"" ###????????????" | | ??????????????????# ##????????????"" | | ????????????????????## ##???????????"" | | ?????????????????????### ####???????? | | ???????????????########" #?????????" | | ???????????????# !!""""" % #???# | | ???????????????#! g"# # ?### | | ???????????????#! # ##X# | | ???????????????#! ]]!@#####" | | ???????????????# !""""" #;#???#" | | ???????????????########## #???### | | ????????????????????????# #??????# | | ????????????????????????# #???????# | | ????????????????????????# #????????###" | | ????????????????????????# #???????????## | | ????????????????????????# #????????????##" | | ????????????????????????# #?????????????#""" | | ????????????????????????? ?????????????##" | | ????????????????????????? ?????????????#"" | | ????????????????????????? ?????????????#""" | | ????????????????????????? ????????????#""" | | ?????????????????????????#????????????#""" | | ??????????????????????????????????????#"" | | ??????????????????????????????????????#""" | | ??????????????????????????????????????#"" | | ??????????????????????????????????????##"" | | ???????????????????????????????????????#"""" | | ???????????????????????????????????????## | | ????????????????????????????????????????#" | | ????????????????????????????????????????#"""" | | ????????????????????????????????????????#"" | | ????????????????????????????????????????#" | | ????????????????????????????????????????#""" | +----------------------------------------------------+ Best States ------------- Heat Dissipation 28 Energy Generation 14 Energy Capacity 280 Matter Stores 300 Matter Capacity 300 Sight Range 16 Terrain Scan Density 10 Armor Coverage 225 Evasion (%) 55 Recoil Reduction 3 Item Schematics ----------------- Exp. Sensor Array | -9/Materials | Scanalyzed Robot Schematics ------------------ None Fabricated ------------ Nothing Alien Tech Used ----------------- None Achievements -------------- None Challenges ------------ None Game ------ Seed GhostMyomerDissipator Manual? 0 Play Time 00:30:51 Cumulative 229.9 hours Start 2023.03.06 @ 00:04:15 End 2023.03.06 @ 00:34:08 Sessions 1 Manual Loads 0 Difficulty Rogue Special Mode None Game No. 299 Rogue 299 Adventurer 0 Explorer 0 Win Type - Total 5 Types 1/0/3/0/0/0/1/0/0 Lore% 79 Gallery% 85 Achievement% 66 Wizard Run 0 Options --------- ASCII 0 Keyboard 0 Movement Numpad Keybinds 0 Fullscreen 1 Font 18/SmallcapsGlow Map View 76x50 Tactical HUD 1 Map Filters NONE Filters NONE Steam 1 RUN: f355af90-ff6f-42d3-9302-8859eb1d8be5